[Event "Late-Titled-Tuesday-Blitz-November-28-2023"]
[Site "Chess.com"]
[Date "2023.11.28"]
[Round "3"]
[White "YQPerez"]
[Black "EvilMorty23"]
[Result "1-0"]
[WhiteElo "2837"]
[BlackElo "2481"]
[TimeControl "180+1"]
[EndTime "14:27:32 PST"]
[Termination "YQPerez won by resignation"]

1. e4 {[%clk 0:03:00.9]} 1... e6 {[%clk 0:03:00]} 2. d4 {[%clk 0:03:00.5]} 2...
d5 {[%clk 0:03:00.9]} 3. Nc3 {[%clk 0:03:01]} 3... Nf6 {[%clk 0:03:01.3]} 4. e5
{[%clk 0:03:01.3]} 4... Nfd7 {[%clk 0:03:01.9]} 5. Nce2 {[%clk 0:03:01.8]} 5...
c5 {[%clk 0:03:02.8]} 6. c3 {[%clk 0:03:02.5]} 6... Nc6 {[%clk 0:03:03.7]} 7.
Nf3 {[%clk 0:03:02.6]} 7... f6 {[%clk 0:03:04.3]} 8. Nf4 {[%clk 0:03:00.6]} 8...
Qe7 {[%clk 0:03:04.1]} 9. Bb5 {[%clk 0:02:58.3]} 9... cxd4 {[%clk 0:03:01.6]}
10. exf6 {[%clk 0:02:41.1]} 10... Nxf6 {[%clk 0:02:58.9]} 11. O-O {[%clk
0:02:41.2]} 11... e5 {[%clk 0:02:52.7]} 12. Nxe5 {[%clk 0:02:24.4]} 12... Qxe5
{[%clk 0:02:51.9]} 13. Re1 {[%clk 0:02:25.1]} 13... Ne4 {[%clk 0:02:51.8]} 14.
f3 {[%clk 0:02:23.8]} 14... dxc3 {[%clk 0:02:49.9]} 15. fxe4 {[%clk 0:02:22.9]}
15... Bc5+ {[%clk 0:02:49.1]} 16. Kh1 {[%clk 0:02:22.7]} 16... O-O {[%clk
0:02:38.5]} 17. exd5 {[%clk 0:02:21.6]} 17... cxb2 {[%clk 0:02:38.5]} 18. Bxb2
{[%clk 0:02:16.5]} 18... Qxb2 {[%clk 0:02:37.6]} 19. Rb1 {[%clk 0:01:57.7]}
19... Qd4 {[%clk 0:02:22.2]} 20. dxc6 {[%clk 0:01:45.5]} 20... Rxf4 {[%clk
0:02:19.4]} 21. Qb3+ {[%clk 0:01:41]} 21... Kf8 {[%clk 0:02:16.7]} 22. Rbd1
{[%clk 0:01:38]} 22... Qf6 {[%clk 0:02:12.5]} 23. Qd5 {[%clk 0:01:26.9]} 23...
Rf5 {[%clk 0:02:12.7]} 24. cxb7 {[%clk 0:01:21]} 24... Bxb7 {[%clk 0:02:08.8]}
25. Qxb7 {[%clk 0:01:21]} 25... Rd8 {[%clk 0:02:05.5]} 26. g4 {[%clk 0:01:03]}
26... Rf2 {[%clk 0:01:53.5]} 27. Rxd8+ {[%clk 0:00:58]} 27... Qxd8 {[%clk
0:01:53.8]} 28. Re8+ {[%clk 0:00:58.1]} 28... Qxe8 {[%clk 0:01:54.3]} 29. Bxe8
{[%clk 0:00:58.4]} 29... Kxe8 {[%clk 0:01:55.2]} 30. Qc6+ {[%clk 0:00:57.4]}
30... Kf7 {[%clk 0:01:54.3]} 31. Qxc5 {[%clk 0:00:53.2]} 31... Rf6 {[%clk
0:01:55.2]} 32. Qxa7+ {[%clk 0:00:50.7]} 32... Kg6 {[%clk 0:01:54.9]} 33. Qc5
{[%clk 0:00:50.3]} 33... h6 {[%clk 0:00:37.8]} 34. a4 {[%clk 0:00:48.3]} 34...
Rf1+ {[%clk 0:00:36]} 35. Kg2 {[%clk 0:00:47.9]} 35... Rc1 {[%clk 0:00:36.9]}
36. Qxc1 {[%clk 0:00:47.5]} 36... Kf6 {[%clk 0:00:36.1]} 37. Kf3 {[%clk
0:00:31.3]} 37... h5 {[%clk 0:00:35.3]} 38. gxh5 {[%clk 0:00:31]} 38... Kf7
{[%clk 0:00:35.8]} 39. Ke4 {[%clk 0:00:30.9]} 39... Kg8 {[%clk 0:00:35.4]} 40.
Kd5 {[%clk 0:00:31.8]} 40... Kh7 {[%clk 0:00:35.7]} 41. Kc6 {[%clk 0:00:32.7]}
41... g6 {[%clk 0:00:35.8]} 42. Kb7 {[%clk 0:00:33.6]} 42... gxh5 {[%clk
0:00:36]} 43. Ka8 {[%clk 0:00:34.5]} 43... h4 {[%clk 0:00:36.2]} 44. Kb7 {[%clk
0:00:34.6]} 44... h3 {[%clk 0:00:37.1]} 45. a5 {[%clk 0:00:34.1]} 45... Kg6
{[%clk 0:00:36.7]} 46. a6 {[%clk 0:00:34.7]} 46... Kf5 {[%clk 0:00:37.6]} 47.
Kc6 {[%clk 0:00:34.5]} 47... Ke4 {[%clk 0:00:38.5]} 48. Kc5 {[%clk 0:00:34.8]}
48... Kf3 {[%clk 0:00:39.4]} 49. Kd4 {[%clk 0:00:35]} 49... Kg2 {[%clk
0:00:40.3]} 50. Qd2+ {[%clk 0:00:33]} 50... Kg1 {[%clk 0:00:39.7]} 51. Ke3
{[%clk 0:00:31.1]} 51... Kh1 {[%clk 0:00:39.2]} 52. Kf3 {[%clk 0:00:31]} 52...
Kg1 {[%clk 0:00:39]} 53. Kg3 {[%clk 0:00:31.4]} 53... Kh1 {[%clk 0:00:38.3]} 54.
Qe2 {[%clk 0:00:29.1]} 54... Kg1 {[%clk 0:00:38.3]} 55. a7 {[%clk 0:00:29.2]}
55... Kh1 {[%clk 0:00:37.4]} 56. a8=Q+ {[%clk 0:00:29]} 56... Kg1 {[%clk
0:00:38.3]} 57. Qa7+ {[%clk 0:00:28.1]} 57... Kh1 {[%clk 0:00:38.4]} 58. Qaa6
{[%clk 0:00:27.8]} 58... Kg1 {[%clk 0:00:38.4]} 59. Qb6+ {[%clk 0:00:28.2]} 1-0

[Event "Late-Titled-Tuesday-Blitz-November-28-2023"]
[Site "Chess.com"]
[Date "2023.11.28"]
[Round "3"]
[White "wallowss"]
[Black "Jaka_Brilej"]
[Result "0-1"]
[WhiteElo "2201"]
[BlackElo "2461"]
[TimeControl "180+1"]
[EndTime "14:27:33 PST"]
[Termination "Jaka_Brilej won by checkmate"]

1. d4 {[%clk 0:02:59.7]} 1... Nf6 {[%clk 0:03:00.9]} 2. Bg5 {[%clk 0:02:59.5]}
2... d5 {[%clk 0:03:00]} 3. Nd2 {[%clk 0:02:58.5]} 3... Bf5 {[%clk 0:02:42.4]}
4. Ngf3 {[%clk 0:02:55.7]} 4... Nbd7 {[%clk 0:02:35.8]} 5. e3 {[%clk 0:02:54.3]}
5... e6 {[%clk 0:02:32]} 6. h3 {[%clk 0:02:52.1]} 6... h6 {[%clk 0:02:24.7]} 7.
Bh4 {[%clk 0:02:51.5]} 7... Bd6 {[%clk 0:02:19.8]} 8. c4 {[%clk 0:02:46.5]} 8...
g5 {[%clk 0:02:19.1]} 9. c5 {[%clk 0:02:32.1]} 9... Bxc5 {[%clk 0:02:18.3]} 10.
dxc5 {[%clk 0:02:26.8]} 10... gxh4 {[%clk 0:02:18.4]} 11. Nxh4 {[%clk
0:02:26.1]} 11... Bh7 {[%clk 0:02:18.7]} 12. Rc1 {[%clk 0:02:20.2]} 12... c6
{[%clk 0:02:18.1]} 13. Nb3 {[%clk 0:02:12.7]} 13... a5 {[%clk 0:02:12.6]} 14. a4
{[%clk 0:02:10.9]} 14... Qe7 {[%clk 0:02:00.1]} 15. Nf3 {[%clk 0:02:03.4]} 15...
Ne4 {[%clk 0:01:59.9]} 16. Bd3 {[%clk 0:01:48.3]} 16... Ndxc5 {[%clk 0:01:56.4]}
17. Nxc5 {[%clk 0:01:47.7]} 17... Nxc5 {[%clk 0:01:57.1]} 18. Bxh7 {[%clk
0:01:45]} 18... Rxh7 {[%clk 0:01:57.8]} 19. Qc2 {[%clk 0:01:45]} 19... Ne4
{[%clk 0:01:57.8]} 20. Nd4 {[%clk 0:01:36.8]} 20... Qb4+ {[%clk 0:01:00.4]} 21.
Kf1 {[%clk 0:01:29.4]} 21... Qd6 {[%clk 0:00:54.7]} 22. g3 {[%clk 0:01:15.3]}
22... Rg7 {[%clk 0:00:54.3]} 23. Rg1 {[%clk 0:01:13.5]} 23... Kd7 {[%clk
0:00:53.9]} 24. b3 {[%clk 0:01:08.6]} 24... f5 {[%clk 0:00:50.7]} 25. Nf3 {[%clk
0:01:04.4]} 25... b6 {[%clk 0:00:40.4]} 26. Qb2 {[%clk 0:01:03.2]} 26... d4
{[%clk 0:00:26.8]} 27. exd4 {[%clk 0:00:59.4]} 27... Qd5 {[%clk 0:00:23.7]} 28.
Ne5+ {[%clk 0:00:57.6]} 28... Ke8 {[%clk 0:00:21.5]} 29. Nxc6 {[%clk 0:00:50.8]}
29... Rc8 {[%clk 0:00:20.5]} 30. Ne5 {[%clk 0:00:44.7]} 30... Rgc7 {[%clk
0:00:21.1]} 31. Re1 {[%clk 0:00:40.8]} 31... Rc2 {[%clk 0:00:20.7]} 32. Qxc2
{[%clk 0:00:23.2]} 32... Rxc2 {[%clk 0:00:21.6]} 33. Rg2 {[%clk 0:00:23.6]}
33... Qxd4 {[%clk 0:00:17.7]} 34. Ng4 {[%clk 0:00:06.3]} 34... fxg4 {[%clk
0:00:16]} 35. hxg4 {[%clk 0:00:05.3]} 35... Rxf2+ {[%clk 0:00:15.3]} 36. Kg1
{[%clk 0:00:06]} 36... Rxg2+ {[%clk 0:00:15.5]} 37. Kxg2 {[%clk 0:00:06.8]}
37... Qf2+ {[%clk 0:00:16.2]} 38. Kh3 {[%clk 0:00:07.6]} 38... Qxg3# {[%clk
0:00:15.7]} 0-1

[Event "Late-Titled-Tuesday-Blitz-November-28-2023"]
[Site "Chess.com"]
[Date "2023.11.28"]
[Round "3"]
[White "ahkashefi2800"]
[Black "K_A_S_T_O_R"]
[Result "0-1"]
[WhiteElo "2578"]
[BlackElo "2897"]
[TimeControl "180+1"]
[EndTime "14:27:40 PST"]
[Termination "K_A_S_T_O_R won by checkmate"]

1. d4 {[%clk 0:02:59.9]} 1... Nf6 {[%clk 0:02:59]} 2. Nf3 {[%clk 0:02:59.9]}
2... e6 {[%clk 0:02:59.1]} 3. g3 {[%clk 0:03:00.2]} 3... b6 {[%clk 0:02:59.1]}
4. Bg2 {[%clk 0:03:00.7]} 4... Bb7 {[%clk 0:02:59.6]} 5. O-O {[%clk 0:03:01.1]}
5... c5 {[%clk 0:02:59.6]} 6. Bg5 {[%clk 0:03:00.8]} 6... cxd4 {[%clk
0:02:57.4]} 7. Qxd4 {[%clk 0:03:00.9]} 7... Be7 {[%clk 0:02:57.3]} 8. Nbd2
{[%clk 0:02:47.5]} 8... h6 {[%clk 0:02:53.9]} 9. Bxf6 {[%clk 0:02:44.3]} 9...
Bxf6 {[%clk 0:02:53.9]} 10. Qb4 {[%clk 0:02:44]} 10... Nc6 {[%clk 0:02:48.2]}
11. Qa3 {[%clk 0:02:43.1]} 11... d5 {[%clk 0:02:47.5]} 12. e4 {[%clk 0:02:36.7]}
12... Be7 {[%clk 0:02:41.5]} 13. Qa4 {[%clk 0:02:35.3]} 13... O-O {[%clk
0:02:29.5]} 14. c3 {[%clk 0:02:30.8]} 14... dxe4 {[%clk 0:02:25.6]} 15. Nxe4
{[%clk 0:02:29.5]} 15... Qc7 {[%clk 0:02:25]} 16. Rad1 {[%clk 0:02:23.5]} 16...
Rad8 {[%clk 0:02:23]} 17. Rxd8 {[%clk 0:02:21.5]} 17... Rxd8 {[%clk 0:02:22.3]}
18. Rd1 {[%clk 0:02:21.8]} 18... Rxd1+ {[%clk 0:02:17.9]} 19. Qxd1 {[%clk
0:02:21.7]} 19... Na5 {[%clk 0:02:12.6]} 20. Qe2 {[%clk 0:01:45.8]} 20... Qc4
{[%clk 0:02:02.2]} 21. Nd4 {[%clk 0:01:32.1]} 21... Qxa2 {[%clk 0:01:58.9]} 22.
h4 {[%clk 0:01:08.1]} 22... Qc4 {[%clk 0:01:45.7]} 23. Qe3 {[%clk 0:00:41]}
23... Bd5 {[%clk 0:01:28.4]} 24. b4 {[%clk 0:00:35.2]} 24... Nb3 {[%clk
0:01:18.2]} 25. Nxb3 {[%clk 0:00:33.9]} 25... Qxb3 {[%clk 0:01:18.1]} 26. Nd2
{[%clk 0:00:27.4]} 26... Qd1+ {[%clk 0:01:16.4]} 27. Kh2 {[%clk 0:00:27.1]}
27... Bxg2 {[%clk 0:01:04.9]} 28. Kxg2 {[%clk 0:00:26.9]} 28... Qg4 {[%clk
0:01:04.3]} 29. Nf3 {[%clk 0:00:11.3]} 29... Bf6 {[%clk 0:01:00.2]} 30. b5
{[%clk 0:00:03]} 30... Qc4 {[%clk 0:00:59.2]} 31. Qd2 {[%clk 0:00:01.6]} 31...
Qxb5 {[%clk 0:00:55.4]} 32. Qa2 {[%clk 0:00:02.2]} 32... a5 {[%clk 0:00:53.9]}
33. Qa3 {[%clk 0:00:02.3]} 33... Qc6 {[%clk 0:00:52.3]} 34. Qb3 {[%clk
0:00:02.4]} 34... Bxc3 {[%clk 0:00:51]} 35. g4 {[%clk 0:00:02.1]} 35... a4
{[%clk 0:00:48.8]} 36. Qd1 {[%clk 0:00:01.2]} 36... Bf6 {[%clk 0:00:47.3]} 37.
Qd3 {[%clk 0:00:01.4]} 37... Bxh4 {[%clk 0:00:44.9]} 38. Kh3 {[%clk 0:00:01.6]}
38... Bf6 {[%clk 0:00:43.9]} 39. g5 {[%clk 0:00:01.9]} 39... hxg5 {[%clk
0:00:43.5]} 40. Kg4 {[%clk 0:00:02.2]} 40... Qd5 {[%clk 0:00:40.9]} 41. Qe3
{[%clk 0:00:01.6]} 41... Qf5+ {[%clk 0:00:40.4]} 42. Kg3 {[%clk 0:00:01.7]}
42... Qf4+ {[%clk 0:00:40.7]} 43. Qxf4 {[%clk 0:00:01.8]} 43... gxf4+ {[%clk
0:00:41.4]} 44. Kxf4 {[%clk 0:00:02.7]} 44... a3 {[%clk 0:00:41.9]} 45. Nd2
{[%clk 0:00:03.6]} 45... a2 {[%clk 0:00:42.2]} 46. Nb3 {[%clk 0:00:04]} 46...
a1=Q {[%clk 0:00:42.5]} 47. Nd2 {[%clk 0:00:02.1]} 47... Qe5+ {[%clk 0:00:41.3]}
48. Kf3 {[%clk 0:00:02.2]} 48... Qd5+ {[%clk 0:00:41.6]} 49. Kg3 {[%clk
0:00:02.4]} 49... Qxd2 {[%clk 0:00:41.4]} 50. Kh2 {[%clk 0:00:03.3]} 50... Qxf2+
{[%clk 0:00:40.9]} 51. Kh1 {[%clk 0:00:04.2]} 51... Qf1+ {[%clk 0:00:40.7]} 52.
Kh2 {[%clk 0:00:04.3]} 52... Be5# {[%clk 0:00:40.9]} 0-1

[Event "Late-Titled-Tuesday-Blitz-November-28-2023"]
[Site "Chess.com"]
[Date "2023.11.28"]
[Round "3"]
[White "KNVB"]
[Black "vidavi"]
[Result "1-0"]
[WhiteElo "2689"]
[BlackElo "2440"]
[TimeControl "180+1"]
[EndTime "14:27:42 PST"]
[Termination "KNVB won by resignation"]

1. e4 {[%clk 0:03:00.9]} 1... c5 {[%clk 0:02:56.3]} 2. Nf3 {[%clk 0:03:00.1]}
2... Nc6 {[%clk 0:02:56.9]} 3. d3 {[%clk 0:02:56.9]} 3... g6 {[%clk 0:02:55]} 4.
h4 {[%clk 0:02:56.4]} 4... h5 {[%clk 0:02:54.4]} 5. Ng5 {[%clk 0:02:51.4]} 5...
Bg7 {[%clk 0:02:53.6]} 6. Nd2 {[%clk 0:02:46.4]} 6... d5 {[%clk 0:02:46.4]} 7.
c3 {[%clk 0:02:32.9]} 7... Nf6 {[%clk 0:02:41.9]} 8. g3 {[%clk 0:02:20.6]} 8...
O-O {[%clk 0:02:27.5]} 9. Bh3 {[%clk 0:02:12.7]} 9... Ne5 {[%clk 0:02:23.7]} 10.
Ndf3 {[%clk 0:02:05.7]} 10... Bxh3 {[%clk 0:02:01]} 11. Nxh3 {[%clk 0:02:05.3]}
11... Nfg4 {[%clk 0:01:42.8]} 12. Nhg5 {[%clk 0:01:20.2]} 12... dxe4 {[%clk
0:01:38.6]} 13. Nxe5 {[%clk 0:01:18.9]} 13... Bxe5 {[%clk 0:01:01.5]} 14. Nxe4
{[%clk 0:01:07.4]} 14... Qb6 {[%clk 0:00:53.3]} 15. Qe2 {[%clk 0:00:50.6]} 15...
Qc6 {[%clk 0:00:45.5]} 16. O-O {[%clk 0:00:48.4]} 16... Rfd8 {[%clk 0:00:32.9]}
17. Be3 {[%clk 0:00:46.7]} 17... b6 {[%clk 0:00:31.8]} 18. Rad1 {[%clk
0:00:46.3]} 18... Bg7 {[%clk 0:00:31.6]} 19. Bc1 {[%clk 0:00:42.6]} 19... a5
{[%clk 0:00:30]} 20. Rfe1 {[%clk 0:00:37]} 20... e6 {[%clk 0:00:27.7]} 21. Bg5
{[%clk 0:00:33.7]} 21... Rd5 {[%clk 0:00:23.6]} 22. f3 {[%clk 0:00:14.9]} 22...
Ne5 {[%clk 0:00:23.4]} 23. Bf6 {[%clk 0:00:04.6]} 23... Nxf3+ {[%clk 0:00:19.5]}
24. Qxf3 {[%clk 0:00:03.1]} 24... Rf5 {[%clk 0:00:20.1]} 25. Qg2 {[%clk
0:00:02.9]} 25... Qd5 {[%clk 0:00:10.8]} 26. Bxg7 {[%clk 0:00:03]} 26... Kxg7
{[%clk 0:00:11.4]} 27. Ng5 {[%clk 0:00:02.8]} 27... Qxa2 {[%clk 0:00:10.1]} 28.
Rf1 {[%clk 0:00:02.7]} 28... Rd8 {[%clk 0:00:09]} 29. Rxf5 {[%clk 0:00:02.7]}
29... exf5 {[%clk 0:00:09.1]} 30. Rd2 {[%clk 0:00:02.8]} 30... a4 {[%clk
0:00:09.3]} 31. d4 {[%clk 0:00:02.9]} 31... Qb1+ {[%clk 0:00:09.6]} 32. Qf1
{[%clk 0:00:03.2]} 32... Qxf1+ {[%clk 0:00:09.1]} 33. Kxf1 {[%clk 0:00:04.1]}
33... a3 {[%clk 0:00:09.5]} 34. bxa3 {[%clk 0:00:04.4]} 34... cxd4 {[%clk
0:00:09.9]} 35. cxd4 {[%clk 0:00:05.3]} 35... Ra8 {[%clk 0:00:10.3]} 36. Rd3
{[%clk 0:00:05.8]} 36... f6 {[%clk 0:00:10.7]} 37. Ne6+ {[%clk 0:00:04.6]} 37...
Kf7 {[%clk 0:00:11.4]} 38. Nf4 {[%clk 0:00:05.4]} 38... Ra5 {[%clk 0:00:11.3]}
39. d5 {[%clk 0:00:05.6]} 39... g5 {[%clk 0:00:11.9]} 40. hxg5 {[%clk
0:00:05.3]} 40... fxg5 {[%clk 0:00:12.8]} 41. Ne6 {[%clk 0:00:05.1]} 41... g4
{[%clk 0:00:12.6]} 42. d6 {[%clk 0:00:05.1]} 42... Kxe6 {[%clk 0:00:12.8]} 43.
d7 {[%clk 0:00:05.7]} 43... Ra8 {[%clk 0:00:13.2]} 44. d8=Q {[%clk 0:00:06.3]}
44... Rxd8 {[%clk 0:00:13.5]} 45. Rxd8 {[%clk 0:00:07.2]} 45... f4 {[%clk
0:00:13.5]} 46. Kf2 {[%clk 0:00:07.6]} 46... fxg3+ {[%clk 0:00:13.3]} 47. Kxg3
{[%clk 0:00:08.5]} 47... Ke5 {[%clk 0:00:13.5]} 48. Rb8 {[%clk 0:00:08.9]} 1-0

[Event "Late-Titled-Tuesday-Blitz-November-28-2023"]
[Site "Chess.com"]
[Date "2023.11.28"]
[Round "3"]
[White "Blackwhite017"]
[Black "Godzillator"]
[Result "0-1"]
[WhiteElo "2046"]
[BlackElo "2355"]
[TimeControl "180+1"]
[EndTime "14:27:51 PST"]
[Termination "Godzillator won on time"]

1. e4 {[%clk 0:03:00.9]} 1... d5 {[%clk 0:02:58.3]} 2. exd5 {[%clk 0:03:00.2]}
2... Qxd5 {[%clk 0:02:58.4]} 3. Nf3 {[%clk 0:02:57.1]} 3... Bg4 {[%clk
0:02:57.8]} 4. Be2 {[%clk 0:02:54.2]} 4... Nf6 {[%clk 0:02:57.2]} 5. h3 {[%clk
0:02:54.3]} 5... Bh5 {[%clk 0:02:56.7]} 6. Nc3 {[%clk 0:02:53.7]} 6... Qd6
{[%clk 0:02:55.8]} 7. d4 {[%clk 0:02:42.4]} 7... c6 {[%clk 0:02:55.8]} 8. Be3
{[%clk 0:02:42.1]} 8... Nbd7 {[%clk 0:02:55.2]} 9. Qd2 {[%clk 0:02:40.7]} 9...
Nb6 {[%clk 0:02:51.1]} 10. O-O-O {[%clk 0:02:36.5]} 10... e6 {[%clk 0:02:50.7]}
11. Rhe1 {[%clk 0:02:34.3]} 11... Be7 {[%clk 0:02:49.2]} 12. g4 {[%clk
0:02:28.8]} 12... Bg6 {[%clk 0:02:48.7]} 13. Ne5 {[%clk 0:02:23.7]} 13... Nfd5
{[%clk 0:02:48.1]} 14. Nxd5 {[%clk 0:02:20.9]} 14... Nxd5 {[%clk 0:02:46.7]} 15.
Nxg6 {[%clk 0:02:16.4]} 15... hxg6 {[%clk 0:02:45.1]} 16. c4 {[%clk 0:02:04.8]}
16... Nxe3 {[%clk 0:02:38.9]} 17. Qxe3 {[%clk 0:02:04]} 17... O-O-O {[%clk
0:02:21.2]} 18. d5 {[%clk 0:01:45.8]} 18... cxd5 {[%clk 0:01:59]} 19. Qxa7
{[%clk 0:01:39]} 19... d4 {[%clk 0:01:55.7]} 20. Qa8+ {[%clk 0:01:18.1]} 20...
Qb8 {[%clk 0:01:54.8]} 21. Qxb8+ {[%clk 0:00:52.5]} 21... Kxb8 {[%clk
0:01:55.7]} 22. Rd3 {[%clk 0:00:52.6]} 22... e5 {[%clk 0:01:50]} 23. Bf1 {[%clk
0:00:48.7]} 23... Bg5+ {[%clk 0:01:40.7]} 24. Kc2 {[%clk 0:00:43.6]} 24... Bf4
{[%clk 0:01:37.2]} 25. Bg2 {[%clk 0:00:43.6]} 25... f5 {[%clk 0:01:35.8]} 26.
Rb3 {[%clk 0:00:38.5]} 26... Rd7 {[%clk 0:01:33.9]} 27. Bd5 {[%clk 0:00:33.2]}
27... Rc7 {[%clk 0:01:23.7]} 28. Rb6 {[%clk 0:00:28.7]} 28... Rd8 {[%clk
0:01:20]} 29. Kd1 {[%clk 0:00:23.7]} 29... fxg4 {[%clk 0:01:05.4]} 30. hxg4
{[%clk 0:00:22.1]} 30... g5 {[%clk 0:01:05.7]} 31. Rg6 {[%clk 0:00:13.3]} 31...
Ka7 {[%clk 0:01:00]} 32. b3 {[%clk 0:00:09.5]} 32... b5 {[%clk 0:00:59.7]} 33.
Ke2 {[%clk 0:00:08.9]} 33... bxc4 {[%clk 0:00:59.2]} 34. Bxc4 {[%clk 0:00:08.2]}
34... e4 {[%clk 0:00:56.6]} 35. Rh1 {[%clk 0:00:02.9]} 35... d3+ {[%clk
0:00:49.8]} 36. Kd1 {[%clk 0:00:03.2]} 36... e3 {[%clk 0:00:46.4]} 37. fxe3
{[%clk 0:00:02.9]} 37... Bxe3 {[%clk 0:00:46.4]} 38. Rh7 {[%clk 0:00:02.9]}
38... Rdd7 {[%clk 0:00:36.4]} 39. Rh5 {[%clk 0:00:02.1]} 39... d2 {[%clk
0:00:30.5]} 40. Rh8 {[%clk 0:00:02.1]} 40... Rf7 {[%clk 0:00:24.9]} 41. Bxf7
{[%clk 0:00:01.9]} 41... Rc1+ {[%clk 0:00:24.2]} 42. Ke2 {[%clk 0:00:01.9]}
42... d1=Q+ {[%clk 0:00:24.3]} 43. Kxe3 {[%clk 0:00:02.8]} 43... Rc3+ {[%clk
0:00:22.5]} 44. Ke4 {[%clk 0:00:02]} 44... Qd3+ {[%clk 0:00:21.5]} 45. Ke5
{[%clk 0:00:02]} 45... Rc5+ {[%clk 0:00:20]} 46. Ke6 {[%clk 0:00:02.2]} 46...
Qe4+ {[%clk 0:00:18.2]} 0-1

[Event "Late-Titled-Tuesday-Blitz-November-28-2023"]
[Site "Chess.com"]
[Date "2023.11.28"]
[Round "3"]
[White "larsmandreassen"]
[Black "Artem_Koval"]
[Result "1-0"]
[WhiteElo "2258"]
[BlackElo "2510"]
[TimeControl "180+1"]
[EndTime "14:27:53 PST"]
[Termination "larsmandreassen won by checkmate"]

1. d4 {[%clk 0:03:00.9]} 1... d5 {[%clk 0:02:59.1]} 2. Nf3 {[%clk 0:03:00.4]}
2... Nf6 {[%clk 0:02:59.4]} 3. c4 {[%clk 0:03:00.6]} 3... e6 {[%clk 0:02:59.3]}
4. Nc3 {[%clk 0:03:01.2]} 4... Be7 {[%clk 0:02:59.2]} 5. Bg5 {[%clk 0:03:01.8]}
5... O-O {[%clk 0:02:59.6]} 6. e3 {[%clk 0:03:00.4]} 6... a6 {[%clk 0:02:59.9]}
7. cxd5 {[%clk 0:02:59.7]} 7... exd5 {[%clk 0:03:00]} 8. Bd3 {[%clk 0:02:59.7]}
8... c6 {[%clk 0:02:56.1]} 9. Rc1 {[%clk 0:02:59.2]} 9... Bg4 {[%clk 0:02:56.1]}
10. h3 {[%clk 0:02:58.9]} 10... Bh5 {[%clk 0:02:56.5]} 11. O-O {[%clk
0:02:58.4]} 11... Nbd7 {[%clk 0:02:55.7]} 12. Qc2 {[%clk 0:02:53.5]} 12... Bxf3
{[%clk 0:02:54.7]} 13. gxf3 {[%clk 0:02:54.4]} 13... h6 {[%clk 0:02:55.1]} 14.
Bh4 {[%clk 0:02:53.8]} 14... Nh5 {[%clk 0:02:45]} 15. Bxe7 {[%clk 0:02:51.2]}
15... Qxe7 {[%clk 0:02:45.9]} 16. Kh2 {[%clk 0:02:48.8]} 16... Qd6+ {[%clk
0:02:20.7]} 17. f4 {[%clk 0:02:48.6]} 17... Rae8 {[%clk 0:02:11.1]} 18. Rg1
{[%clk 0:02:47.6]} 18... Kh8 {[%clk 0:02:10.5]} 19. Rg2 {[%clk 0:02:43.5]} 19...
g5 {[%clk 0:02:01.8]} 20. Rcg1 {[%clk 0:02:31.4]} 20... gxf4 {[%clk 0:01:58.3]}
21. Kh1 {[%clk 0:02:24.2]} 21... fxe3 {[%clk 0:01:49.9]} 22. Nd1 {[%clk
0:01:38.6]} 22... Nf4 {[%clk 0:01:40.3]} 23. Rg7 {[%clk 0:01:28.1]} 23... Nf6
{[%clk 0:01:26.2]} 24. Nxe3 {[%clk 0:01:20.1]} 24... Nxh3 {[%clk 0:01:14.8]} 25.
R1g3 {[%clk 0:01:06]} 25... Ng5 {[%clk 0:01:06]} 26. Nf5 {[%clk 0:00:48.5]}
26... Qf4 {[%clk 0:00:51.5]} 27. R7xg5 {[%clk 0:00:33.3]} 27... hxg5 {[%clk
0:00:33.6]} 28. Rh3+ {[%clk 0:00:29.7]} 28... Nh7 {[%clk 0:00:24.3]} 29. Ne3
{[%clk 0:00:18.8]} 29... f5 {[%clk 0:00:17.3]} 30. Bxf5 {[%clk 0:00:18.4]} 30...
Rxf5 {[%clk 0:00:10.4]} 31. Qxf5 {[%clk 0:00:18.2]} 31... Qxf5 {[%clk
0:00:10.4]} 32. Nxf5 {[%clk 0:00:19.1]} 32... Re2 {[%clk 0:00:07.1]} 33. Nd6
{[%clk 0:00:14.7]} 33... Rxb2 {[%clk 0:00:05.5]} 34. Nf7+ {[%clk 0:00:13.8]}
34... Kg7 {[%clk 0:00:05.8]} 35. Ne5 {[%clk 0:00:12.7]} 35... Rxf2 {[%clk
0:00:05.9]} 36. Rb3 {[%clk 0:00:11.4]} 36... b5 {[%clk 0:00:05.5]} 37. Ra3
{[%clk 0:00:11.7]} 37... Kf6 {[%clk 0:00:03.4]} 38. Nxc6 {[%clk 0:00:11.6]}
38... Kf5 {[%clk 0:00:04.1]} 39. Rxa6 {[%clk 0:00:11.4]} 39... Kg4 {[%clk
0:00:04]} 40. Ra7 {[%clk 0:00:11.7]} 40... Kg3 {[%clk 0:00:03.5]} 41. Ra3+
{[%clk 0:00:05.2]} 41... Kh4 {[%clk 0:00:03]} 42. Ne5 {[%clk 0:00:05.2]} 42...
Nf6 {[%clk 0:00:02]} 43. Ng6+ {[%clk 0:00:04.7]} 43... Kh5 {[%clk 0:00:02.5]}
44. Ne5 {[%clk 0:00:04.4]} 44... Ne4 {[%clk 0:00:02.8]} 45. Rh3# {[%clk
0:00:04]} 1-0